Cogmind - Beta 10.2 @@@ ROGUE MODE // 2020.11.09 @ 17:08:30 // Halloween2020/ForbiddenLore Player: Evo Result: Destroyed by S-10 Pest with Light Assault Rifle Performance ------------- Evolutions (0) 0 Regions Visited (1) 200 Robots Destroyed (7) 35 Value Destroyed (233) 233 Prototype IDs (0) 0 Alien Tech Used (0) 0 Bonus (0) 0 TOTAL SCORE: 468 Bonus ------- None Cogmind --------- Core Integrity 0/250 Matter 292/300 Energy 250/250 System Corruption 1% Temperature Cool (6) Movement Walking (120) Location -10/Materials Parts ------- > --- POWER (1) -------- Ion Engine > --- PROPULSION (2) --- Aluminum Leg Aluminum Leg > --- UTILITY (2) ------ Small Storage Unit Light Armor Plating > --- WEAPON (2) ------- Light Assault Rifle Light Assault Rifle > --- INVENTORY (6) ---- Light Armor Plating Light Armor Plating Peak State ------------ > --- POWER ------------ Ion Engine > --- PROPULSION ------- Aluminum Leg Aluminum Leg > --- UTILITY ---------- Small Storage Unit Light Armor Plating > --- WEAPON ----------- Light Assault Rifle Welding Torch > --- INVENTORY -------- Light Armor Plating [Rating: 7] Favorites ----------- Power Light Ion Engine Engine Light Ion Engine Propulsion Aluminum Leg Leg Aluminum Leg Utility Small Storage Unit Storage Small Storage Unit Protection Light Armor Plating Weapon Light Assault Rifle Energy Gun Medium Laser Ballistic Gun Light Assault Rifle Special Weapon Welding Torch Build | -11 -10 ------- Run | Scr Mat Slots Evolved . | . . Power . | . . Propulsion . | . . Utility . | . . Weapon . | . . Parts Attached 16 | 6 10 Power 2 | 1 1 Engine 2 | 1 1 Core . | . . Reactor . | . . Propulsion 4 | 2 2 Treads . | . . Leg 4 | 2 2 Wheel . | . . Hover . | . . Flight . | . . Utility 4 | 1 3 Device . | . . Storage 1 | 1 . Processor . | . . Hackware . | . . Protection 3 | . 3 Artifact . | . . Weapon 6 | 2 4 Energy Gun 1 | 1 . Energy Cannon . | . . Ballistic Gun 4 | 1 3 Ballistic Cannon . | . . Launcher . | . . Special Weapon 1 | . 1 Impact Weapon . | . . Slashing Weapon . | . . Piercing Weapon . | . . Special Melee Weapon . | . . Unidentified Prototypes . | . . Parts Lost 8 | . 8 Power 1 | . 1 Propulsion 2 | . 2 Utility 1 | . 1 Weapon 4 | . 4 Highest Loss Streak 4 | . 4 Average Slot Usage (%) 82 | . 82 Engine 10 | . 10 Leg 25 | . 25 Storage 14 | . 14 Protection 5 | . 5 Energy Gun 8 | . 8 Ballistic Gun 17 | . 17 Naked Turns . | . . Heaviest Build 14 | 10 14 Greatest Support 20 | 20 20 Greatest Overweight (x) 3 | 3 1 Average Overweight (x) . | . . Largest Inventory Capacity 6 | 6 6 Average Capacity 5 | 5 6 Most Carried 3 | 1 3 Average Carried 1 | . 1 Final Capacity 6 | 6 6 Final Carried 2 | 1 2 Class Distribution -------------------- 100% | Mutant Dominant Class ---------------- Mutant | -10/Materials Resources | -11 -10 ----------- Run | Scr Mat Matter Collected 371 | 213 158 Remotely . | . . Salvage Created 294 | . 294 Parts 11 | . 11 Haulers Intercepted . | . . Recyclers Shooed . | . . Parts Field Recycled . | . . Retrieved Matter . | . . Parts Self-Destructed . | . . Prevented . | . . Kills | -11 -10 ------- Run | Scr Mat Combat Hostiles Destroyed 6 | . 6 Guns 6 | . 6 Classes Destroyed 2 | . 2 Watcher 1 | . 1 Grunt 6 | . 6 Best Kill Streak 2 | . 2 Combat Bots Only 2 | . 2 Max Kills in Single Turn 1 | . 1 Gunslinging . | . . Exploded . | . . Melee . | . . Uniques/NPCs Destroyed . | . . Combat | -11 -10 -------- Run | Scr Mat Damage Taken 1090 | . 1090 Core 259 | . 259 Absorbed by Shields . | . . Core Remaining (%) 100 | 100 . Volleys Fired 53 | . 53 Largest 2 | . 2 Hottest 70 | . 70 Shots Fired 86 | . 86 Gun 84 | . 84 Cannon . | . . Launcher . | . . Special 2 | . 2 Kinetic 67 | . 67 Thermal 19 | . 19 Explosive . | . . Electromagnetic . | . . Robot Hit Streak 6 | . 6 Robot Miss Streak 4 | . 4 Penetration Max . | . . Secondary Targets 1 | . 1 Max Gunslinging Chain 1 | . 1 Shots Hit Robots 54 | . 54 Core Hits 20 | . 20 Critical Hits 1 | . 1 Critical Kills . | . . Critical Parts Destroyed 1 | . 1 Melee Attacks . | . . Impact . | . . Slashing . | . . Piercing . | . . Sneak Attacks . | . . Combat Hostiles . | . . Follow-up Attacks . | . . Damage Inflicted 426 | . 426 Guns 419 | . 419 Cannons . | . . Explosions . | . . Melee . | . . Ramming 1 | . 1 Kinetic 295 | . 295 Thermal 130 | . 130 Explosive . | . . Electromagnetic . | . . Impact . | . . Slashing . | . . Piercing . | . . Highest Corruption 1 | . 1 Average Corruption 1 | . 1 Corruption Purged . | . . Overload Shots . | . . Overflow Damage . | . . Projectiles . | . . Explosions . | . . Melee . | . . Knockbacks . | . . Impact . | . . Kinetic . | . . Secondary . | . . Self-Inflicted Damage . | . . Shots . | . . Rammed 1 | . 1 Targets Rammed 3 | . 3 Kicked 2 | . 2 Crushed . | . . Highest Temperature 173 | . 173 Average Temperature 57 | . 57 Received Heat Transfer 573 | . 573 Siege Activations . | . . Robots Corrupted . | . . Combat Hostiles . | . . Parts Fried . | . . Impact Corruptions . | . . Robots Melted . | . . Combat Hostiles . | . . Parts Melted . | . . Heat Transferred 420 | . 420 Parts Sabotaged . | . . Parts Stolen . | . . Parts Stripped . | . . Power Chain Reactions . | . . Missiles Intercepted . | . . Alert | -11 -10 ------- Run | Scr Mat Peak Influence 115 | . 115 Initial . | . . Average 35 | . 40 Maximum Alert Level . | . . Low Security (%) 100 | 100 100 Level 1 . | . . Level 2 . | . . Level 3 . | . . Level 4 . | . . Level 5 . | . . High Security . | . . Max Security . | . . Squads Dispatched 2 | . 2 Investigation . | . . Extermination . | . . Reinforcement 2 | . 2 Assault . | . . Garrison . | . . Intercept . | . . Construction Impeded . | . . Haulers Reinforced . | . . Stealth | -11 -10 --------- Run | Scr Mat Distress Signals 2 | . 2 Communications Jammed . | . . Distress Signals . | . . Times Spotted 18 | . 18 Peak Tracking Total 6 | . 6 Tactical Retreats . | . . Traps | -11 -10 ------- Run | Scr Mat Traps Triggered 1 | . 1 Indirectly . | . . Trap Hack Attempts . | . . Triggered . | . . Disarmed . | . . Reprogrammed . | . . Reused . | . . Traps Extracted . | . . Installed . | . . Triggered . | . . Machines | -11 -10 ---------- Run | Scr Mat Machines Disabled . | . . Max in Single Turn . | . . Machines Sabotaged . | . . Garrisons Compromised . | . . Overloaded Fab Kills . | . . Fab Network Shutdowns . | . . Hacking | -11 -10 --------- Run | Scr Mat Machines Accessed 2 | . 2 Terminals 1 | . 1 Fabricators . | . . Repair Stations . | . . Recycling Units 1 | . 1 Scanalyzers . | . . Garrison Access . | . . Total Hacks 6 | . 6 Successful 3 | . 3 Failed 3 | . 3 Catastrophic . | . . Database Lockouts . | . . Manual . | . . Terminals 2 | . 2 Fabricators . | . . Repair Stations . | . . Recycling Units 4 | . 4 Scanalyzers . | . . Garrison Access . | . . Terminal Hacks 1 | . 1 Alert Level 1 | . 1 Fabricator Hacks . | . . Repair Station Hacks . | . . Recycling Unit Hacks 2 | . 2 Retrieve Matter 1 | . 1 Retrieve Components 1 | . 1 Scanalyzer . | . . Garrison Access Hacks . | . . Unauthorized Hacks . | . . Terminals . | . . Fabricators . | . . Repair Stations . | . . Recycling Units . | . . Scanalyzers . | . . Garrison Access . | . . Data Cores Recovered . | . . Used . | . . Hacking Detections 1 | . 1 Full Trace Events . | . . Feedback Events . | . . Feedback Blocked . | . . Robot Schematics Acquired . | . . Robots Built . | . . Matter . | . . Time . | . . Total Robot Build Rating . | . . Part Schematics Acquired . | . . Parts Built . | . . Matter . | . . Time . | . . Total Part Build Rating . | . . Parts Repaired . | . . Time . | . . Parts Recycled . | . . Recycled Matter . | . . Retrieved Matter . | . . Retrieved Components . | . . Parts Scanalyzed . | . . Part Schematics Acquired . | . . Parts Damaged . | . . Bothacking | -11 -10 ------------ Run | Scr Mat Used RIF Installer . | . . Robots Hacked . | . . Non-combat . | . . Combat . | . . Robot Hacks Applied . | . . Relay Couplers Released . | . . Robots Rewired . | . . Allies Hacked . | . . Hacks Repelled . | . . Allies | -11 -10 -------- Run | Scr Mat Total Allies . | . . Largest Group . | . . Highest-Rated Group . | . . Highest-Rated Ally . | . . Total Orders . | . . Ally Attacks . | . . Total Damage . | . . Kills . | . . Allies Corrupted . | . . Allies Melted . | . . Intel | -11 -10 ------- Run | Scr Mat Robot Analysis Total . | . . Derelict Logs Recovered . | . . Drone Launches . | . . Drone Recoveries . | . . Exploration | -11 -10 ------------- Run | Scr Mat Turns Passed 530 | 61 469 Spaces Moved 323 | 63 260 Core 40 | 40 . Treads . | . . Legs 283 | 23 260 Wheels . | . . Hover . | . . Flight . | . . Fastest Speed 50 | 50 120 Average Speed 113 | 82 121 Slowest Speed 200 | 200 150 Overloaded Moves . | . . Propulsion Burnouts . | . . Robots Hopped . | . . Cave-ins Triggered . | . . Exploration Rate (%) 21 | 4 39 Regions Visited 1 Branch Regions . Pre-discovered Areas . | . . Known Exits Taken . | . . Unknown Exits Taken 1 | 1 . Scrap Searched . | . . Spaces Dug . | . . Terrain Destroyed . | . . Melee . | . . Projectile . | . . AOE . | . . Terrain Rammed . | . . Walls Destroyed . | . . Machines Disabled . | . . Actions | -11 -10 --------- Run | Scr Mat Total 405 | 69 336 Wait 7 | . 7 Move 322 | 62 260 Hop . | . . Pick Up 4 | 1 3 Fast Attach 12 | 6 6 Attach 3 | . 3 Detach . | . . Swap 1 | . 1 Drop . | . . Fire 53 | . 53 Melee . | . . Ram . | . . Kick 3 | . 3 Crush . | . . Escape Stasis . | . . Rewire . | . . Trap . | . . Miscellaneous . | . . Route ------- -11/Scrapyard -10/Materials (discovered 1 exit: [*Min]) History --------- Turn | Location | Event 11 | -11/Scrapyard | Discovered new exit (range 15) 62 | -11/Scrapyard | Entered Materials 286 | -10/Materials | Discovered new exit (range 7) 310 | -10/Materials | Build established: Mutant 375 | -10/Materials | Core integrity fell below 50% 386 | -10/Materials | Lost 3 parts (1n2w) 425 | -10/Materials | Core integrity fell below 20% 447 | -10/Materials | Lost 4 parts (1n1u2w) 531 | -10/Materials | Destroyed by S-10 Pest with Light Assault Rifle Last Messages --------------- Acquired Lgt. Assault Rifle. G-34 Mercenary destroyed. Switching to secondary target: G-34 Mercenary. K-01 Serf collects debris. G-34 Mercenary destroyed. K-01 Serf collects debris. Acquired 36 matter. K-01 Serf collects debris. Acquired Aluminum Leg. K-01 Serf collects debris. Acquired 10 matter. K-01 Serf collects debris. W-16 Scout destroyed. K-01 Serf collects debris. Acquired 10 matter. K-01 Serf collects debris. Connecting with Terminal... >>Alert(Check) Current Alert Level: Low Security W-16 Scout sends out distress signal. Map ----- +----------------------------------------------------+ | ?????????????????????????????????????????????????? | | ?????????????????????????????????????????????????? | | ?????????????????????????????????????????????????? | | ?????????????????????????????????????????????????? | | ?????????????????????????????????????????????????? | | ?????????????????????????????????????????????????? | | ?????????????????????????????????????????????????? | | ?????????????????????????????????????????????????? | | ??????????"??????????????????????????????????????? | | ???????? ?"??????????????????????????????????????? | | ??????? """??????????????????????????????????????? | | ??????? "" ??????????#???????????????????????????? | | ????????"" ????????? #???????????????????????????? | | ???????? " ???????? #???????????????????????????? | | ???????? ??????? ?????????????????????????????? | | ??????###/#######+#########??????????????????????? | | ####### ^ ?????????????????????? | | ?????????????????????? | | ??????# % g ?????????????????????? | | ??????# #######s#####?????????????????????? | | ??????# ## #### #?????????????????????? | | ??????# # "# #?????????????????????? | | ####### # ""# #?????????????????????? | | # # !!# ## ##?????????????????? | | """ # # < ""# /ss ??????????????????? | | """ # # ||# @ #?????????????????????? | | """ + # ""# #?????????????????????? | | # # "# k #?????????????????????? | | ####### ## #### #?????????????????????? | | ??????# #### ^^########+####?????????????????????? | | ??????# #??# #???????????????????????? | | ??????# #??# #???????????????????????? | | ??????# #??# " #???????????????????????? | | ??????# #??###!!% T #???????????????????????? | | ??????# #????#![%= " !#???????????????????????? | | ??????# #????#! =*! #???????????????????????? | | ??????# #????# !%! #???????????????????????? | | ??????# #????# =! #???????????????????????? | | ??????# #????# ! % #???????????????????????? | | ??????# #????# ! =#####?######????????????? | | ????### #????# *!% #? #????????????? | | ????# #????# [== # #????????????? | | ????# #????# # """ #????????????? | | ????# #????# ###+### + """ #????????????? | | ????# #????###+#### ## # """ #????????????? | | ????# #????? ??#" ## %!# #????????????? | | ????# #???? ??#T ## = #?######????????????? | | ???## ##?? ??#" # ???????????????????? | | #### #?# "" ??# [# "" ??????????????????? | | #?#?"" ??#[ # T ?????????????????? | +----------------------------------------------------+ Best States ------------- Heat Dissipation 25 Energy Generation 10 Energy Capacity 250 Matter Stores 300 Matter Capacity 300 Sight Range 16 Terrain Scan Density 10 Armor Coverage 150 Evasion (%) 50 Item Schematics ----------------- None Robot Schematics ------------------ None Fabricated ------------ Nothing Alien Tech Used ----------------- None Achievements -------------- None Challenges ------------ None Game ------ Seed ImprinterSeismicChip Manual? 0 Play Time 00:10:41 Cumulative 5.3 hours Start 2020.11.09 @ 17:02:19 End 2020.11.09 @ 17:08:30 Sessions 1 Manual Loads 0 Difficulty Rogue Special Mode Halloween2020/ForbiddenLore Game No. 21 Rogue 21 Adventurer 0 Explorer 0 Win Type - Total 0 Types 0/0/0/0/0/0/0/0/0 Lore% 5 Gallery% 8 Achievement% 5 Wizard Run 0 Options --------- ASCII 0 Keyboard 0 Movement Arrows Keybinds 0 Fullscreen 2 Font 18/SmallcapsGlow Map View 76x50 Tactical HUD 0 Map Filters NONE Filters NONE Steam 1 RUN: 865d4a2c-455e-4741-adaa-b1425bda7578